fUST/lending_fUST_20250129
["ID","MTS","AMOUNT","RATE_DAILY","PERIOD"]
[350745639,1738101043870,-500.0,0.00016438,2]
[350745640,1738101043879,-500.0,0.00016438,2]
[350745641,1738101043889,-500.0,0.00016438,2]
[350745642,1738101043899,-500.0,0.00016438,2]
[350745643,1738101043908,-500.0,0.00016438,2]
[350745644,1738101043922,-527.46405005,0.00016438,2]
[350745645,1738101043931,-591.49424595,0.00016438,2]
[350745646,1738101043941,-500.82630284,0.00016438,2]
[350745647,1738101043951,-500.0,0.00016438,2]
[350745648,1738101043973,-500.0,0.00016438,2]
[350745649,1738101043986,-500.0,0.00016438,2]
[350745650,1738101043996,-500.0,0.00016438,2]
[350745651,1738101044007,-500.0,0.00016438,2]
[350745652,1738101044018,-500.0,0.00016438,2]
[350745653,1738101044029,-500.0,0.00016438,2]
[350745654,1738101044039,-500.0,0.00016438,2]
[350745655,1738101044050,-500.0,0.00016438,2]
[350745656,1738101044060,-500.0,0.00016438,2]
[350745657,1738101044071,-500.0,0.00016438,2]
[350745658,1738101044082,-500.0,0.00016438,2]
[350745659,1738101044093,-500.0,0.00016438,2]
[350745660,1738101044103,-500.0,0.00016438,2]
[350745661,1738101044114,-500.0,0.00016438,2]
[350745662,1738101044124,-637.06709061,0.00016438,2]
[350745663,1738101044134,-500.0,0.00016438,2]
[350745664,1738101044144,-500.0,0.00016438,2]
[350745665,1738101044155,-500.0,0.00016438,2]
[350745666,1738101044165,-500.0,0.00016438,2]
[350745667,1738101044178,-500.0,0.00016438,2]
[350745668,1738101044190,-500.0,0.00016438,2]
[350745669,1738101044200,-2327.86,0.00016438,2]
[350745670,1738101044210,-500.0,0.00016438,2]
[350745671,1738101044221,-504.59635071,0.00016438,2]
[350745672,1738101044232,-500.0,0.00016438,2]
[350745673,1738101044242,-508.92719737,0.00016438,2]
[350745674,1738101044253,-500.0,0.00016438,2]
[350745675,1738101044265,-500.0,0.00016438,2]
[350745676,1738101044276,-500.0,0.00016438,2]
[350745677,1738101044287,-500.0,0.00016438,2]
[350745678,1738101044298,-500.0,0.00016438,2]
[350745679,1738101044308,-1290.6,0.00016438,2]
[350745680,1738101044318,-500.0,0.00016438,2]
[350745681,1738101044328,-500.0,0.00016438,2]
[350745682,1738101044338,-500.0,0.00016438,2]
[350745683,1738101044349,-502.68207493,0.00016438,2]
[350745684,1738101044359,-500.0,0.00016438,2]
[350745685,1738101044369,-583.96,0.00016438,2]
[350745686,1738101044380,-500.0,0.00016438,2]
[350745687,1738101044390,-500.0,0.00016438,2]
[350745688,1738101044399,-500.0,0.00016438,2]
[350745689,1738101044409,-500.0,0.00016438,2]
[350745690,1738101044425,-500.0,0.00016438,2]
[350745691,1738101044435,-500.0,0.00016438,2]
[350745692,1738101044446,-500.0,0.00016438,2]
[350745693,1738101044457,-501.35732158,0.00016438,2]
[350745694,1738101044467,-500.0,0.00016438,2]
[350745695,1738101044477,-500.0,0.00016438,2]
[350745696,1738101044487,-500.0,0.00016438,2]
[350745697,1738101044496,-3714.9,0.00016438,2]
[350745698,1738101044506,-385.42982687,0.00016438,2]
[350745699,1738101044523,-114.57017313,0.00016438,2]
[350745700,1738101044533,-500.0,0.00016438,2]
[350745701,1738101044543,-500.0,0.00016438,2]
[350745702,1738101044553,-500.0,0.00016438,2]
[350745703,1738101044563,-617.12,0.00016438,2]
[350745704,1738101044573,-500.0,0.00016438,2]
[350745705,1738101044583,-500.0,0.00016438,2]
[350745706,1738101044593,-521.72713746,0.00016438,2]
[350745707,1738101044603,-500.0,0.00016438,2]
[350745708,1738101044612,-500.0,0.00016438,2]
[350745709,1738101044622,-500.99150561,0.00016438,2]
[350745710,1738101044632,-500.0,0.00016438,2]
[350745711,1738101044642,-472.15090734,0.00016438,2]
[350745712,1738101044652,-500.0,0.00016438,2]
[350745713,1738101044662,-500.0,0.00016438,2]
[350745714,1738101044674,-540.76601751,0.00016438,2]
[350745715,1738101044684,-500.0,0.00016438,2]
[350745716,1738101044694,-500.0,0.00016438,2]
[350745717,1738101044705,-508.43,0.00016438,2]
[350745718,1738101044715,-500.0,0.00016438,2]
[350745719,1738101044724,-500.93019112,0.00016438,2]
[350745720,1738101044735,-500.0,0.00016438,2]
[350745721,1738101044744,-549.04909918,0.00016438,2]
[350745722,1738101044754,-500.0,0.00016438,2]
[350745723,1738101044764,-500.0,0.00016438,2]
[350745724,1738101044774,-500.0,0.00016438,2]
[350745726,1738101044783,-1637.21,0.00016438,2]
[350745728,1738101044793,-500.0,0.00016438,2]
[350745731,1738101044807,-500.0,0.00016438,2]
[350745733,1738101044817,-500.0,0.00016438,2]
[350745734,1738101044829,-500.0,0.00016438,2]
[350745738,1738101044838,-500.0,0.00016438,2]
[350745740,1738101044848,-500.0,0.00016438,2]
[350745742,1738101044858,-500.0,0.00016438,2]
[350745744,1738101044868,-1762.11,0.00016438,2]
[350745746,1738101044878,-500.0,0.00016438,2]
[350745748,1738101044887,-500.0,0.00016438,2]
[350745751,1738101044897,-500.0,0.00016438,2]
[350745754,1738101044908,-500.0,0.00016438,2]
[350745756,1738101044917,-500.0,0.00016438,2]
[350745758,1738101044927,-360.44947422,0.00016438,2]
[350745759,1738101044936,-500.0,0.00016438,2]
[350745760,1738101044946,-500.0,0.00016438,2]
[350745761,1738101044956,-500.0,0.00016438,2]
[350745762,1738101044966,-5568.08,0.00016438,2]
[350745763,1738101044975,-500.0,0.00016438,2]
[350745764,1738101044986,-500.0,0.00016438,2]
[350745765,1738101044996,-1214.15,0.00016438,2]
[350745766,1738101045006,-561.58,0.00016438,2]
[350745767,1738101045015,-500.0,0.00016438,2]
[350745768,1738101045026,-534.41,0.00016438,2]
[350745769,1738101045037,-526.95,0.00016438,2]
[350745770,1738101045046,-507.11615498,0.00016438,2]
[350745771,1738101045056,-500.0,0.00016438,2]
[350745772,1738101045067,-500.0,0.00016438,2]
[350745773,1738101045076,-500.0,0.00016438,2]
[350745774,1738101045087,-500.0,0.00016438,2]
[350745775,1738101045097,-500.0,0.00016438,2]
[350745776,1738101045107,-500.0,0.00016438,2]
[350745777,1738101045117,-500.0,0.00016438,2]
[350745778,1738101045127,-500.0,0.00016438,2]
[350745779,1738101045138,-500.0,0.00016438,2]
[350745780,1738101045149,-500.0,0.00016438,2]
[350745781,1738101045159,-500.0,0.00016438,2]
[350745782,1738101045171,-500.0,0.00016438,2]
[350745783,1738101045182,-1463.07,0.00016438,2]
[350745785,1738101045192,-500.0,0.00016438,2]
[350745787,1738101045202,-500.0,0.00016438,2]
[350745788,1738101045213,-500.48994949,0.00016438,2]
[350745789,1738101045223,-500.0,0.00016438,2]
[350745790,1738101045233,-500.0,0.00016438,2]
[350745791,1738101045243,-501.7182998,0.00016438,2]
[350745792,1738101045253,-500.0,0.00016438,2]
[350745793,1738101045263,-500.0,0.00016438,2]
[350745794,1738101045273,-2789.16,0.00016438,2]
[350745795,1738101045284,-500.0,0.00016438,2]
[350745796,1738101045294,-500.0,0.00016438,2]
[350745797,1738101045304,-500.0,0.00016438,2]
[350745798,1738101045314,-648.14870266,0.00016438,2]
[350745799,1738101045324,-157.55546582,0.00016438,2]
[350745800,1738101045335,-500.0,0.00016438,2]
[350745801,1738101045345,-500.0,0.00016438,2]
[350745802,1738101045355,-500.0,0.00016438,2]
[350745803,1738101045365,-500.0,0.00016438,2]
[350745804,1738101045376,-500.0,0.00016438,2]
[350745805,1738101045387,-500.0,0.00016438,2]
[350745806,1738101045398,-645.70235764,0.00016438,2]
[350745807,1738101045409,-500.0,0.00016438,2]
[350745809,1738101045420,-500.0,0.00016438,2]
[350745811,1738101045431,-500.0,0.00016438,2]
[350745812,1738101045443,-500.0,0.00016438,2]
[350745813,1738101045455,-500.0,0.00016438,2]
[350745814,1738101045467,-500.0,0.00016438,2]
[350745815,1738101045478,-500.0,0.00016438,2]
[350745816,1738101045488,-500.0,0.00016438,2]
[350745817,1738101045498,-496.65104479,0.00016438,2]
[350745818,1738101045509,-500.0,0.00016438,2]
[350745819,1738101045519,-500.0,0.00016438,2]
[350745820,1738101045529,-500.0,0.00016438,2]
[350745821,1738101045539,-500.0,0.00016438,2]
[350745822,1738101045548,-700.0,0.00016468,2]
[350745823,1738101045558,-500.0,0.00016472,2]
[350745824,1738101045568,-500.0,0.00016472,2]
[350745825,1738101045577,-1389.18,0.00016472,2]
[350745826,1738101045587,-322.45071314,0.00016473,2]
[350745827,1738101045598,-500.39717318,0.00016473,2]
[350745828,1738101045608,-284.46567549,0.00016473,2]
[350745829,1738101045618,-152.0,0.00016514,2]
[350745830,1738101045628,-1776.22,0.00016572,2]
[350745831,1738101045638,-500.0,0.00016573,2]
[350745832,1738101045647,-500.62893881,0.00016573,2]
[350745833,1738101045658,-204.38637686,0.00016573,2]
[350745834,1738101045670,-500.0,0.00016573,2]
[350745835,1738101045680,-500.0,0.00016573,2]
[350745836,1738101045690,-272.39876138,0.00016573,2]
[350745837,1738101045810,-500.0,0.00016573,2]
[350745838,1738101045831,-500.0,0.00016573,2]
[350745839,1738101045841,-500.0,0.00016573,2]
[350745840,1738101045851,-501.08916729,0.00016573,2]
[350745841,1738101045861,-259.65189065,0.00016573,2]
[350745842,1738101045871,-152.41589878,0.00016573,2]
[350745843,1738101045881,-1776.22,0.00016573,2]
[350745844,1738101045892,-1776.22,0.00016573,2]
[350745845,1738101045902,-1776.22,0.00016573,2]
[350745846,1738101045912,-1776.22,0.00016573,2]
[350745847,1738101045924,-1776.38858758,0.00016573,2]
[350745848,1738101045934,-500.0,0.00016574,2]
[350745849,1738101045944,-500.0,0.00016574,2]
[350745851,1738101045954,-500.0,0.00016574,2]
[350745852,1738101045963,-500.0,0.00016574,2]
[350745854,1738101045973,-500.0,0.00016574,2]
[350745856,1738101045983,-500.0,0.00016574,2]
[350745858,1738101045992,-159.1473403,0.00016574,2]
[350745861,1738101046149,-340.8526597,0.00016574,2]
[350745862,1738101046161,-320.55592505,0.00016574,2]
[350745863,1738101046178,-503.42511213,0.00016574,2]
[350745864,1738101046190,-500.0,0.00016574,2]
[350745866,1738101046201,-500.0,0.00016574,2]
[350745867,1738101046213,-500.0,0.00016574,2]
[350745868,1738101046224,-500.0,0.00016574,2]
[350745869,1738101046236,-500.0,0.00016574,2]
[350745870,1738101046248,-356.77687456,0.00016574,2]
[350745871,1738101046260,-500.0,0.00016574,2]
[350745872,1738101046271,-500.0,0.00016574,2]
[350745873,1738101046281,-1389.18,0.00016574,2]
[350745874,1738101046292,-1389.18,0.00016574,2]
[350745875,1738101046303,-1389.18,0.00016574,2]
[350745876,1738101046314,-1389.18,0.00016574,2]
[350745877,1738101046324,-1389.18,0.00016574,2]
[350745878,1738101046335,-1389.18,0.00016574,2]
[350745879,1738101046345,-1389.18,0.00016574,2]
[350745880,1738101046355,-1389.18,0.00016574,2]
[350745881,1738101046366,-1389.18,0.00016574,2]
[350745882,1738101046377,-1389.28966081,0.00016574,2]
[350745883,1738101046386,-500.0,0.00016575,2]
[350745884,1738101046397,-500.0,0.00016575,2]
[350745885,1738101046407,-500.0,0.00016575,2]
[350745886,1738101046417,-501.89090445,0.00016575,2]
[350745887,1738101046433,-501.74563648,0.00016575,2]
[350745888,1738101046443,-500.0,0.00016575,2]
[350745889,1738101046454,-500.0,0.00016575,2]
[350745890,1738101046465,-500.0,0.00016575,2]
[350745891,1738101046475,-500.0,0.00016575,2]
[350745892,1738101046486,-500.0,0.00016575,2]
[350745893,1738101046496,-203.8853704,0.00016575,2]
[350745894,1738101046506,-500.0,0.00016575,2]
[350745895,1738101046516,-507.30372831,0.00016575,2]
[350745896,1738101046527,-500.0,0.00016575,2]
[350745897,1738101046536,-506.19107294,0.00016575,2]
[350745898,1738101046546,-500.0,0.00016575,2]
[350745899,1738101046557,-500.0,0.00016575,2]
[350745900,1738101046566,-500.0,0.00016575,2]
[350745901,1738101046576,-263.76,0.00016575,2]
[350745902,1738101046586,-500.0,0.00016575,2]
[350745903,1738101046595,-405.92,0.00016575,2]
[350745904,1738101046605,-374.17,0.00016575,2]
[350745905,1738101046615,-500.0,0.00016575,2]
[350745906,1738101046624,-500.0,0.00016575,2]
[350745907,1738101046634,-500.0,0.00016575,2]
[350745908,1738101046643,-225.61305517,0.00016575,2]
[350745909,1738101046659,-248.66694483,0.00016575,2]
[350745910,1738101046673,-500.0,0.00016575,2]
[350745911,1738101046684,-500.0,0.00016575,2]
[350745912,1738101046694,-500.0,0.00016575,2]
[350745913,1738101046704,-500.0,0.00016575,2]
[350745914,1738101046713,-500.0,0.00016575,2]
[350745915,1738101046723,-500.0,0.00016575,2]
[350745916,1738101046733,-500.0,0.00016575,2]
[350745917,1738101046744,-500.0,0.00016575,2]
[350745918,1738101046754,-500.0,0.00016575,2]
[350745919,1738101046763,-503.22476783,0.00016575,2]
[350745920,1738101046774,-500.0,0.00016575,2]
[350745921,1738101046785,-500.0,0.00016575,2]
[350745922,1738101046795,-500.0,0.00016575,2]
[350745924,1738101046805,-500.0,0.00016575,2]
[350745926,1738101046817,-500.0,0.00016575,2]
[350745927,1738101046828,-500.0,0.00016575,2]
[350745929,1738101046838,-466.1330956,0.00016575,2]
[350745930,1738101046850,-33.8669044,0.00016575,2]
[350745931,1738101046860,-500.0,0.00016575,2]
[350745932,1738101046871,-500.0,0.00016575,2]
[350745933,1738101046882,-500.0,0.00016575,2]
[350745934,1738101046895,-326.61939569,0.00016575,2]
[350745935,1738101046905,-476.82329042,0.00016575,2]
[350745936,1738101046915,-500.0,0.00016575,2]
[350745937,1738101046928,-512.04760966,0.00016575,2]
[350745938,1738101046938,-500.0,0.00016575,2]
[350745939,1738101046951,-500.0,0.00016575,2]
[350745941,1738101046960,-500.0,0.00016575,2]
[350745942,1738101046970,-500.0,0.00016575,2]
[350745943,1738101046981,-500.0,0.00016575,2]
[350745944,1738101046991,-500.0,0.00016575,2]
[350745946,1738101047001,-500.0,0.00016575,2]
[350745948,1738101047011,-500.0,0.00016575,2]
[350745949,1738101047021,-500.0,0.00016575,2]
[350745951,1738101047031,-500.0,0.00016575,2]
[350745952,1738101047041,-603.80144383,0.00016575,2]
[350745953,1738101047051,-500.0,0.00016575,2]
[350745954,1738101047061,-500.0,0.00016575,2]
[350745955,1738101047073,-500.0,0.00016575,2]
[350745956,1738101047082,-500.0,0.00016575,2]
[350745957,1738101047091,-500.0,0.00016575,2]
[350745958,1738101047102,-500.0,0.00016575,2]
[350745959,1738101047112,-500.0,0.00016575,2]
[350745960,1738101047122,-500.0,0.00016575,2]
[350745961,1738101047132,-500.0,0.00016575,2]
[350745962,1738101047142,-291.78323058,0.00016575,2]
[350745963,1738101047156,-208.21676942,0.00016575,2]
[350745964,1738101047167,-500.0,0.00016575,2]
[350745965,1738101047179,-500.0,0.00016575,2]
[350745966,1738101047189,-362.78323058,0.00016575,2]
[350745967,1738101047201,-137.21676942,0.00016575,2]
[350745968,1738101047211,-500.0,0.00016575,2]
[350745969,1738101047221,-508.75414529,0.00016575,2]
[350745970,1738101047231,-500.0,0.00016575,2]
[350745971,1738101047240,-500.0,0.00016575,2]
[350745972,1738101047250,-500.0,0.00016575,2]
[350745973,1738101047261,-34.68559103,0.00016575,2]
[350745975,1738101047502,-465.31440897,0.00016575,2]
[350745976,1738101047514,-500.0,0.00016575,2]
[350745977,1738101047524,-500.0,0.00016575,2]
[350745978,1738101047533,-500.0,0.00016575,2]
[350745979,1738101047543,-500.0,0.00016575,2]
[350745980,1738101047553,-500.0,0.00016575,2]
[350745981,1738101047563,-500.0,0.00016575,2]
[350745982,1738101047573,-12685.08559103,0.00016575,2]
[350745983,1738101047585,-1708.17481012,0.00016575,2]
[350745984,1738101047627,-351.67959885,0.00016575,2]
[350745985,1738101047637,-500.0,0.00016575,2]
[350745986,1738101047647,-500.0,0.00016575,2]
[350745987,1738101047656,-567.69,0.00016575,2]
[350745988,1738101047665,-500.0,0.00016575,2]
[350745989,1738101047678,-500.0,0.00016575,2]
[350745990,1738101047688,-1501.17,0.00016575,2]
[350745991,1738101047697,-549.17,0.00016575,2]
[350745992,1738101047708,-500.0,0.00016575,2]
[350745993,1738101047719,-500.0,0.00016575,2]
[350745994,1738101047729,-500.0,0.00016575,2]
[350745995,1738101047739,-4045.29040115,0.00016575,2]
[350745996,1738101047751,-461.44959885,0.00016575,2]
[350745997,1738101047761,-145.21040115,0.00016575,2]
[350745998,1738101047774,-354.78959885,0.00016575,2]
[350745999,1738101047916,-782.47,0.00016575,2]
[350746000,1738101047928,-2150.31,0.00016575,2]
[350746001,1738101047938,-500.0,0.00016575,2]
[350746002,1738101047949,-500.0,0.00016575,2]
[350746003,1738101047958,-500.0,0.00016575,2]
[350746004,1738101047969,-500.0,0.00016575,2]
[350746005,1738101047979,-500.0,0.00016575,2]
[350746006,1738101047989,-500.0,0.00016575,2]
[350746007,1738101047999,-602.41196835,0.00016575,2]
[350746008,1738101048008,-500.0,0.00016575,2]
[350746009,1738101048017,-500.0,0.00016575,2]
[350746010,1738101048027,-500.0,0.00016575,2]
[350746011,1738101048038,-633.51,0.00016575,2]
[350746012,1738101048048,-500.0,0.00016575,2]
[350746013,1738101048058,-500.0,0.00016575,2]
[350746014,1738101048068,-500.0,0.00016575,2]
[350746015,1738101048078,-500.0,0.00016575,2]
[350746016,1738101048088,-500.0,0.00016575,2]
[350746017,1738101048098,-500.0,0.00016575,2]
[350746018,1738101048108,-654.56,0.00016575,2]
[350746019,1738101048118,-500.0,0.00016575,2]
[350746020,1738101048128,-500.0,0.00016575,2]
[350746021,1738101048138,-500.0,0.00016575,2]
[350746022,1738101048147,-500.0,0.00016575,2]
[350746023,1738101048157,-500.0,0.00016575,2]
[350746024,1738101048170,-500.0,0.00016575,2]
[350746025,1738101048180,-500.0,0.00016575,2]
[350746026,1738101048190,-500.0,0.00016575,2]
[350746027,1738101048200,-520.04510318,0.00016575,2]
[350746028,1738101048211,-500.0,0.00016575,2]
[350746029,1738101048221,-500.18796554,0.00016575,2]
[350746030,1738101048232,-500.0,0.00016575,2]
[350746031,1738101048242,-378.16144046,0.00016575,2]
[350746032,1738101048264,-121.83855954,0.00016575,2]
[350746033,1738101048280,-501.05930482,0.00016575,2]
[350746034,1738101048290,-500.0,0.00016575,2]
[350746035,1738101048301,-500.0,0.00016575,2]
[350746036,1738101048312,-500.0,0.00016575,2]
[350746037,1738101048323,-500.0,0.00016575,2]
[350746038,1738101048334,-500.0,0.00016575,2]
[350746039,1738101048345,-2327.86,0.00016575,2]
[350746040,1738101048356,-500.0,0.00016575,2]
[350746041,1738101048367,-247.47063773,0.00016575,2]
[350746042,1738101110735,500.0,0.000171,14]
[350746047,1738101354814,500.0,0.000171,14]
[350746052,1738101670539,238.150885,0.00013973,2]
[350746148,1738102233001,-295.145982,0.00015279,2]
[350746150,1738102233011,-300.0,0.00015443,2]
[350746152,1738102233021,-756.002914,0.00015444,2]
[350746168,1738102233173,-24143.997086,0.00015444,2]
[350746170,1738102233183,-264.7,0.00015567,2]
[350746172,1738102233193,-151.0,0.000159,2]
[350746174,1738102233203,-151.0,0.000161,2]
[350746176,1738102233214,-151.0,0.000162,2]
[350746178,1738102233226,-267.3373751,0.00016318,2]
[350746180,1738102233235,-1113.24992409,0.00016318,2]
[350746182,1738102233246,-267.33737509,0.00016323,2]
[350746184,1738102233256,-267.33737509,0.00016328,2]
[350746186,1738102233267,-267.33737509,0.00016333,2]
[350746188,1738102233276,-267.33737509,0.00016338,2]
[350746190,1738102233286,-152.0,0.00016386,2]
[350746193,1738102233297,-151.0,0.000164,2]
[350746194,1738102233307,-500.0,0.00016417,2]
[350746196,1738102233316,-637.56198906,0.00016417,2]
[350746198,1738102233327,-500.0,0.00016417,2]
[350746200,1738102233336,-500.0,0.00016417,2]
[350746202,1738102233346,-500.0,0.00016417,2]
[350746204,1738102233356,-500.0,0.00016417,2]
[350746206,1738102233366,-500.0,0.00016417,2]
[350746208,1738102233376,-500.0,0.00016417,2]
[350746210,1738102233386,-500.0,0.00016417,2]
[350746212,1738102233395,-461.96257009,0.00016417,2]
[350746214,1738102233404,-500.0,0.00016417,2]
[350746216,1738102233415,-500.0,0.00016417,2]
[350746218,1738102233425,-500.0,0.00016417,2]
[350746220,1738102233436,-500.0,0.00016417,2]
[350746222,1738102233445,-500.0,0.00016417,2]
[350746224,1738102233455,-500.0,0.00016417,2]
[350746226,1738102233465,-500.0,0.00016417,2]
[350746228,1738102233475,-590.35066317,0.00016417,2]
[350746230,1738102233484,-500.0,0.00016417,2]
[350746232,1738102233494,-500.0,0.00016417,2]
[350746234,1738102233504,-500.0,0.00016417,2]
[350746236,1738102233514,-265.0,0.00016417,2]
[350746238,1738102233523,-500.0,0.00016417,2]
[350746240,1738102233533,-500.0,0.00016417,2]
[350746242,1738102233542,-501.82662371,0.00016438,2]
[350746244,1738102233552,-500.0,0.00016438,2]
[350746246,1738102233562,-500.0,0.00016438,2]
[350746248,1738102233571,-500.0,0.00016438,2]
[350746250,1738102233581,-500.0,0.00016438,2]
[350746252,1738102233590,-500.0,0.00016438,2]
[350746254,1738102233600,-500.0,0.00016438,2]
[350746256,1738102233610,-431.36781497,0.00016438,2]
[350746258,1738102233619,-505.1433936,0.00016438,2]
[350746260,1738102233629,-500.0,0.00016438,2]
[350746262,1738102233639,-500.0,0.00016438,2]
[350746264,1738102233648,-500.0,0.00016438,2]
[350746266,1738102233657,-500.0,0.00016438,2]
[350746268,1738102233667,-500.0,0.00016438,2]
[350746270,1738102233676,-500.0,0.00016438,2]
[350746272,1738102233686,-500.0,0.00016438,2]
[350746274,1738102233696,-500.0,0.00016438,2]
[350746275,1738102233705,-500.0,0.00016438,2]
[350746276,1738102233715,-500.0,0.00016438,2]
[350746277,1738102233726,-500.0,0.00016438,2]
[350746278,1738102233735,-512.90811279,0.00016438,2]
[350746279,1738102233745,-500.0,0.00016438,2]
[350746280,1738102233755,-500.0,0.00016438,2]
[350746281,1738102233765,-500.0,0.00016438,2]
[350746282,1738102233774,-500.0,0.00016438,2]
[350746283,1738102233784,-500.7729404,0.00016438,2]
[350746284,1738102233794,-500.0,0.00016438,2]
[350746285,1738102233804,-500.0,0.00016438,2]
[350746286,1738102233815,-500.0,0.00016438,2]
[350746287,1738102233824,-500.0,0.00016438,2]
[350746288,1738102233834,-519.28659836,0.00016438,2]
[350746289,1738102233843,-500.0,0.00016438,2]
[350746290,1738102233853,-500.0,0.00016438,2]
[350746291,1738102233863,-500.0,0.00016438,2]
[350746292,1738102233873,-564.2755885,0.00016438,2]
[350746293,1738102233882,-500.0,0.00016438,2]
[350746294,1738102233892,-500.0,0.00016438,2]
[350746295,1738102233901,-500.0,0.00016438,2]
[350746296,1738102233911,-500.0,0.00016438,2]
[350746298,1738102233921,-500.0,0.00016438,2]
[350746300,1738102233931,-500.0,0.00016438,2]
[350746302,1738102233940,-500.0,0.00016438,2]
[350746304,1738102233949,-500.0,0.00016438,2]
[350746306,1738102233959,-500.0,0.00016438,2]
[350746308,1738102233969,-500.0,0.00016438,2]
[350746310,1738102233979,-503.09337898,0.00016438,2]
[350746312,1738102233988,-500.0,0.00016438,2]
[350746314,1738102233998,-500.65336918,0.00016438,2]
[350746315,1738102234007,-500.0,0.00016438,2]
[350746318,1738102234017,-500.0,0.00016438,2]
[350746320,1738102234027,-500.0,0.00016438,2]
[350746322,1738102234037,-380.97869241,0.00016438,2]
[350746324,1738102234047,-500.0,0.00016438,2]
[350746325,1738102234056,-500.0,0.00016438,2]
[350746327,1738102234066,-513.56861015,0.00016438,2]
[350746341,1738102234194,-500.0,0.00016438,2]
[350746344,1738102234205,-509.81683209,0.00016438,2]
[350746345,1738102234218,-500.0,0.00016438,2]
[350746346,1738102234228,-500.0,0.00016438,2]
[350746347,1738102234243,-500.0,0.00016438,2]
[350746348,1738102234255,-500.0,0.00016438,2]
[350746349,1738102234266,-500.0,0.00016438,2]
[350746350,1738102234276,-500.0,0.00016438,2]
[350746351,1738102234287,-500.0,0.00016438,2]
[350746352,1738102234296,-500.0,0.00016438,2]
[350746353,1738102234306,-322.76139914,0.00016438,2]
[350746354,1738102234316,-500.0,0.00016438,2]
[350746355,1738102234326,-500.0,0.00016438,2]
[350746356,1738102234337,-500.0,0.00016438,2]
[350746357,1738102234346,-500.0,0.00016438,2]
[350746358,1738102234356,-500.0,0.00016438,2]
[350746359,1738102234366,-501.13265787,0.00016438,2]
[350746360,1738102234376,-500.0,0.00016438,2]
[350746361,1738102234386,-500.0,0.00016438,2]
[350746362,1738102234396,-500.0,0.00016438,2]
[350746363,1738102234410,-500.0,0.00016438,2]
[350746364,1738102234419,-500.0,0.00016438,2]
[350746365,1738102234429,-500.0,0.00016438,2]
[350746366,1738102234438,-507.48053854,0.00016438,2]
[350746367,1738102234449,-623.85613057,0.00016438,2]
[350746369,1738102234458,-500.0,0.00016438,2]
[350746371,1738102234468,-500.0,0.00016438,2]
[350746372,1738102234477,-500.0,0.00016438,2]
[350746374,1738102234488,-500.0,0.00016438,2]
[350746376,1738102234498,-500.0,0.00016438,2]
[350746378,1738102234508,-500.0,0.00016438,2]
[350746380,1738102234518,-500.0,0.00016438,2]
[350746382,1738102234528,-500.0,0.00016438,2]
[350746384,1738102234538,-500.0,0.00016438,2]
[350746386,1738102234547,-500.0,0.00016438,2]
[350746388,1738102234557,-500.0,0.00016438,2]
[350746390,1738102234567,-512.80334496,0.00016438,2]